Cogmind - Beta 11 X4 @@@ ROGUE MODE // 2021.05.28 @ 18:51:43 Player: Heavyrisk Result: Self-destructed Performance ------------- Evolutions (4) 2000 Regions Visited (10) 2000 Robots Destroyed (109) 545 Value Destroyed (5064) 5064 Prototype IDs (16) 320 Alien Tech Used (0) 0 Bonus (2347) 2347 TOTAL SCORE: 12276 Bonus ------- High Alert Combat Kills 533 Follower Combat Kills 57 Entered Garrisons 600 Used RIF Installer 1500 Friendly Fire -343 Cogmind --------- Core Integrity 831/850 Matter 252/300 Energy 254/310 System Corruption 4% Temperature Cool (0) Movement Walking (120) Location -6/Factory Parts ------- > --- POWER (1) -------- Fission Core > --- PROPULSION (4) --- Improved Carbon-fiber Leg Improved Carbon-fiber Leg Improved Carbon-fiber Leg Improved Carbon-fiber Leg > --- UTILITY (7) ------ High-capacity Storage Unit Improved Light Armor Plating Improved Light Armor Plating Relay Coupler [NC] (24) Relay Coupler [Swarmer] (18) Relay Coupler [Grunt] (30) Relay Coupler [Sentry] (17) > --- WEAPON (3) ------- Antimatter Cannon Remote Datajack Power Sword > --- INVENTORY (20) --- Micro Nuclear Core F-cell Engine Improved Carbon-fiber Leg Improved Carbon-fiber Leg Improved Carbon-fiber Leg Coolant Injector Improved Signal Interpreter Transmission Jammer Improved Light Armor Plating Relay Coupler [Swarmer] (43) Long-range Tractor Beam Improved Heavy Machine Gun Advanced Assault Cannon Advanced Assault Cannon Magnetic Acceleration Cannon Heavy Rocket Launcher Remote Datajack Remote Datajack Power Sword Spear Peak State ------------ > --- POWER ------------ Fission Core > --- PROPULSION ------- Improved Carbon-fiber Leg Improved Carbon-fiber Leg Improved Carbon-fiber Leg Improved Carbon-fiber Leg > --- UTILITY ---------- High-capacity Storage Unit Improved Light Armor Plating Improved Light Armor Plating Relay Coupler [NC] Relay Coupler [Swarmer] Relay Coupler [Grunt] Relay Coupler [Sentry] > --- WEAPON ----------- Antimatter Cannon Remote Datajack Power Sword > --- INVENTORY -------- F-cell Engine Improved Carbon-fiber Leg Improved Carbon-fiber Leg Improved Carbon-fiber Leg Coolant Injector Improved Signal Interpreter Kinecellerator Transmission Jammer Improved Light Armor Plating Relay Coupler [Swarmer] Long-range Tractor Beam Improved Heavy Machine Gun Advanced Assault Cannon Advanced Assault Cannon Magnetic Acceleration Cannon Heavy Rocket Launcher Remote Datajack Remote Datajack Power Sword Spear [Rating: 62] Favorites ----------- Power F-cell Engine Engine F-cell Engine Power Core Micro Nuclear Core Propulsion Light Treads Treads Light Treads Leg Titanium Leg Utility Large Storage Unit Device Improved Heat Sink Storage Large Storage Unit Hackware Relay Coupler [Grunt] Protection Improved Light Armor Plating Weapon Remote Datajack Energy Gun Heavy Particle Gun Energy Cannon Ion Cannon Ballistic Gun Assault Rifle Ballistic Cannon Antimatter Cannon Launcher Rocket Launcher Special Weapon Remote Datajack Slashing Weapon Great Axe Piercing Weapon Spear Special Melee Weapon Datajack Build | -11 -10 -9 -8 -8 -8 -8 -7 -7 -7 -6 ------- Run | Scr Mat Mat Mat Gar Sto Gar Fac Gar Fac Fac Slots Evolved 8 | . . 2 2 . . . 2 . . 2 Power . | . . . . . . . . . . . Propulsion 2 | . . 1 1 . . . . . . . Utility 5 | . . 1 1 . . . 2 . . 1 Weapon 1 | . . . . . . . . . . 1 Parts Attached 176 | 6 3 15 21 3 14 11 43 16 24 20 Power 14 | 1 . 1 1 . 3 1 . . 3 4 Engine 9 | 1 . 1 1 . 3 1 . . 1 1 Core 5 | . . . . . . . . . 2 3 Reactor . | . . . . . . . . . . . Propulsion 38 | 2 . 5 7 1 4 . 10 . 5 4 Treads 19 | 2 . 5 7 1 4 . . . . . Leg 19 | . . . . . . . 10 . 5 4 Wheel . | . . . . . . . . . . . Hover . | . . . . . . . . . . . Flight . | . . . . . . . . . . . Utility 51 | 1 3 5 9 1 1 4 6 4 10 7 Device 10 | . . 2 1 1 . 2 1 . 1 2 Storage 9 | 1 3 2 2 . . . . . 1 . Processor . | . . . . . . . . . . . Hackware 11 | . . . . . . 1 3 2 2 3 Protection 21 | . . 1 6 . 1 1 2 2 6 2 Artifact . | . . . . . . . . . . . Weapon 73 | 2 . 4 4 1 6 6 27 12 6 5 Energy Gun 8 | . . 1 2 1 3 1 . . . . Energy Cannon 3 | . . . . . 1 2 . . . . Ballistic Gun 22 | 2 . 3 2 . . 2 9 4 . . Ballistic Cannon 3 | . . . . . . . . . . 3 Launcher 5 | . . . . . . 1 3 . 1 . Special Weapon 11 | . . . . . . . 4 5 2 . Impact Weapon . | . . . . . . . . . . . Slashing Weapon 17 | . . . . . 2 . 8 3 3 1 Piercing Weapon 3 | . . . . . . . 2 . . 1 Special Melee Weapon 1 | . . . . . . . 1 . . . Unidentified Prototypes 8 | . . 2 3 . 1 . 2 . . . Parts Lost 16 | . . 1 1 . . 1 2 4 6 1 Power 2 | . . . . . . 1 . . 1 . Propulsion 2 | . . . . . . . . . 2 . Utility 10 | . . 1 1 . . . 1 4 2 1 Weapon 2 | . . . . . . . 1 . 1 . Highest Loss Streak 5 | . . 1 1 . . 1 2 2 5 1 Average Slot Usage (%) 98 | . 94 97 99 100 91 97 99 97 99 99 Engine 7 | . 14 11 9 9 9 8 7 7 5 . Treads 15 | . 28 31 36 36 36 36 . . . . Leg 15 | . . . . . . . 29 30 29 26 Device 5 | . . 10 9 9 9 13 2 . 1 1 Storage 9 | . 22 17 11 9 9 9 7 7 7 6 Hackware 16 | . . . . . . 1 29 26 32 25 Protection 8 | . . 4 15 18 10 9 4 8 3 10 Energy Gun 3 | . . 3 9 17 16 3 . . . . Energy Cannon 1 | . . . . . . 12 . . . . Ballistic Gun 5 | . 28 18 8 . . 1 5 . . . Ballistic Cannon 1 | . . . . . . . . . . 10 Special Weapon 2 | . . . . . . . 3 6 6 6 Slashing Weapon 2 | . . . . . 1 . 3 6 7 . Naked Turns . | . . . . . . . . . . . Heaviest Build 74 | 14 18 38 48 47 54 54 48 50 65 74 Greatest Support 80 | 40 40 60 80 80 80 80 80 69 69 72 Greatest Overweight (x) 4 | 4 . . . . . . . . 1 1 Average Overweight (x) . | . . . . . . . . . . . Largest Inventory Capacity 25 | 8 25 15 15 15 15 15 15 15 20 20 Average Capacity 15 | 7 8 12 15 15 15 15 15 15 19 20 Most Carried 20 | 4 8 15 15 15 15 15 15 15 20 20 Average Carried 15 | 1 6 10 14 14 14 14 14 14 18 19 Final Capacity 20 | 8 8 15 15 15 15 15 15 15 20 20 Final Carried 20 | 4 8 15 15 15 15 15 14 15 20 20 Class Distribution -------------------- 49% | Bothacker-Mutant 35% | Scavenger-Mutant 14% | Mutant Dominant Class ---------------- Mutant | -10/Materials Mutant | -9/Materials Scavenger-Mutant | -8/Materials Scavenger-Mutant | -8/Garrison Scavenger-Mutant | -8/Storage Scavenger-Mutant | -8/Garrison Bothacker-Mutant | -7/Factory Bothacker-Mutant | -7/Garrison Bothacker-Mutant | -7/Factory Bothacker-Mutant | -6/Factory Resources | -11 -10 -9 -8 -8 -8 -8 -7 -7 -7 -6 ----------- Run | Scr Mat Mat Mat Gar Sto Gar Fac Gar Fac Fac Matter Collected 3404 | 234 130 584 379 20 130 295 636 215 429 352 Remotely . | . . . . . . . . . . . Salvage Created 4531 | . 103 764 1075 319 282 533 674 199 287 295 Parts 228 | . 7 32 52 11 11 18 50 11 17 19 Haulers Intercepted 6 | . . 2 3 . . . . . . 1 Recyclers Shooed 4 | . . 2 1 . . . . . . 1 Parts Field Recycled . | . . . . . . . . . . . Retrieved Matter . | . . . . . . . . . . . Parts Self-Destructed . | . . . . . . . . . . . Prevented . | . . . . . . . . . . . Kills | -11 -10 -9 -8 -8 -8 -8 -7 -7 -7 -6 ------- Run | Scr Mat Mat Mat Gar Sto Gar Fac Gar Fac Fac Combat Hostiles Destroyed 88 | . 3 11 19 6 5 12 13 6 8 5 Melee 13 | . . . . . . . 6 3 3 1 Guns 60 | . 3 11 19 6 5 8 5 3 . . Cannons 7 | . . . . . . 4 . . . 3 AOE 8 | . . . . . . . 2 . 5 1 Classes Destroyed 14 | . 2 5 2 1 . . 1 . 2 1 Worker 3 | . . . . . . . . . 1 2 Builder 2 | . . . . . . . . . . 2 Hauler 6 | . . 2 3 . . . . . . 1 Recycler 5 | . . 2 . . . . 2 . 1 . Mechanic 2 | . . 1 . . . . . . 1 . Operator 1 | . . . 1 . . . . . . . Watcher 1 | . . . 1 . . . . . . . Swarmer 19 | . 1 . 3 . . 3 5 3 4 . Grunt 39 | . 2 6 12 5 2 9 1 2 . . Brawler 3 | . . 1 1 . . . . . . 1 Sentry 14 | . . 4 3 . 3 . 3 . . 1 Specialist 2 | . . . . . . . . . 2 . Hunter 3 | . . . . 1 . . . . 1 1 Programmer 9 | . . . . . . . 4 1 2 2 Best Kill Streak 6 | . 2 3 6 3 3 4 4 2 6 4 Combat Bots Only 5 | . 2 3 3 3 3 4 4 2 5 1 Max Kills in Single Turn 4 | . 1 1 1 1 1 1 2 1 3 4 Gunslinging . | . . . . . . . . . . . Exploded 2 | . . . . . . . 2 . 2 1 Melee 1 | . . . . . . . 1 1 1 1 Uniques/NPCs Destroyed . | . . . . . . . . . . . Combat | -11 -10 -9 -8 -8 -8 -8 -7 -7 -7 -6 -------- Run | Scr Mat Mat Mat Gar Sto Gar Fac Gar Fac Fac Damage Taken 5053 | . 76 617 850 274 198 643 735 503 935 222 Core 611 | . 33 87 66 15 14 67 104 53 153 19 Absorbed by Shields 52 | . . . . . . 52 . . . . Core Remaining (%) 77 | 100 86 78 . . . 70 . . 55 . Volleys Fired 289 | . 5 46 60 23 16 47 35 21 15 21 Largest 2 | . 2 2 2 2 2 2 2 2 1 2 Hottest 120 | . 40 79 80 110 110 120 56 56 39 88 Shots Fired 498 | . 10 91 120 44 27 83 49 26 15 33 Gun 383 | . 10 91 120 44 22 57 28 11 . . Cannon 51 | . . . . . 5 22 . . . 24 Launcher 9 | . . . . . . 4 2 . 3 . Special 55 | . . . . . . . 19 15 12 9 Kinetic 256 | . 10 87 60 . . 36 28 11 . 24 Thermal 178 | . . 4 60 44 27 43 . . . . Explosive 9 | . . . . . . 4 2 . 3 . Electromagnetic . | . . . . . . . . . . . Robot Hit Streak 31 | . 5 22 22 31 20 15 7 4 7 5 Robot Miss Streak 5 | . 1 3 3 2 . 3 4 5 3 1 Penetration Max . | . . . . . . . . . . . Secondary Targets 4 | . . . . 1 . 2 1 . . . Max Gunslinging Chain 1 | . . . . 1 . 1 1 . . . Shots Hit Robots 409 | . 7 76 91 35 19 51 54 24 19 33 Core Hits 185 | . 5 31 41 12 9 22 24 13 16 12 Critical Kills 1 | . . 1 . . . . . . . . Critical Parts Destroyed 1 | . . . . . . 1 . . . . Critical Strikes 9 | . . 2 2 . 2 1 1 . . 1 Burn 5 | . . 1 2 . 2 . . . . . Destroy 2 | . . 1 . . . 1 . . . . Blast 1 | . . . . . . . . . . 1 Sever 1 | . . . . . . . 1 . . . Melee Attacks 73 | . . . . . 2 . 31 10 13 17 Impact . | . . . . . . . . . . . Slashing 64 | . . . . . 2 . 30 10 13 9 Piercing 8 | . . . . . . . . . . 8 Sneak Attacks 36 | . . . . . . . 15 5 4 12 Combat Hostiles 24 | . . . . . . . 13 5 . 6 Follow-up Attacks . | . . . . . . . . . . . Damage Inflicted 11571 | . 83 1034 1638 713 357 1011 2239 812 1215 2469 Guns 5049 | . 83 1018 1625 710 357 734 384 138 . . Cannons 728 | . . . . . . 272 . . . 456 Explosions 1285 | . . . . . . . 156 . 533 596 Melee 4386 | . . . . . . . 1678 674 682 1352 Ramming 123 | . . 16 13 3 . 5 21 . . 65 Kinetic 3304 | . 83 952 731 . . 560 384 138 . 456 Thermal 3069 | . . 66 894 710 357 446 . . . 596 Explosive 689 | . . . . . . . 156 . 533 . Electromagnetic . | . . . . . . . . . . . Impact . | . . . . . . . . . . . Slashing 4000 | . . . . . . . 1678 674 682 966 Piercing 386 | . . . . . . . . . . 386 Highest Corruption 4 | . . 1 . . . . 3 3 3 4 Average Corruption 2 | . . 1 . . . . 2 3 3 4 Corruption Purged . | . . . . . . . . . . . Effects 60 | . . 3 . . . . 7 12 25 13 Message Errors 19 | . . 1 . . . . 5 2 8 3 Matter Fused 13 | . . . . . . . . 4 4 5 Heat Flow Errors 7 | . . . . . . . . 1 4 2 Energy Discharges 14 | . . 1 . . . . 2 2 6 3 Data Loss (minor) 5 | . . . . . . . . 2 3 . Weapon Failures 2 | . . 1 . . . . . 1 . . Overload Shots . | . . . . . . . . . . . Overflow Damage 969 | . . . . . . 9 284 121 170 385 Projectiles 9 | . . . . . . 9 . . . . Explosions 60 | . . . . . . . . . . 60 Melee 900 | . . . . . . . 284 121 170 325 Knockbacks 4 | . . 1 . . . . . . . 3 Impact 1 | . . 1 . . . . . . . . Kinetic 3 | . . . . . . . . . . 3 Secondary . | . . . . . . . . . . . Self-Inflicted Damage 84 | . . . . . . 59 25 . . . Shots 3 | . . . . . . 2 1 . . . Rammed 7 | . . 3 2 1 . 1 . . . . Targets Rammed 14 | . . 3 3 1 . 1 3 . . 3 Kicked 6 | . . . . . . . 3 . . 3 Crushed 1 | . . . 1 . . . . . . . Highest Temperature 249 | . 5 . 35 204 54 156 10 212 228 249 Average Temperature 49 | . 5 . 8 76 21 53 5 47 85 37 Received Heat Transfer 1404 | . 42 222 414 135 81 288 24 18 162 18 Siege Activations . | . . . . . . . . . . . Robots Corrupted . | . . . . . . . . . . . Combat Hostiles . | . . . . . . . . . . . Parts Fried . | . . . . . . . . . . . Impact Corruptions . | . . . . . . . . . . . Robots Melted . | . . . . . . . . . . . Combat Hostiles . | . . . . . . . . . . . Parts Melted 15 | . . 2 5 5 1 1 . . . 1 Heat Transferred 5321 | . . 222 1813 1295 851 740 . . . 400 Parts Sabotaged . | . . . . . . . . . . . Parts Stolen . | . . . . . . . . . . . Parts Stripped . | . . . . . . . . . . . Power Chain Reactions . | . . . . . . . . . . . Missiles Intercepted . | . . . . . . . . . . . Alert | -11 -10 -9 -8 -8 -8 -8 -7 -7 -7 -6 ------- Run | Scr Mat Mat Mat Gar Sto Gar Fac Gar Fac Fac Peak Influence 929 | . 115 258 254 400 420 753 750 785 929 512 Initial 510 | . . . 45 45 195 273 394 510 411 455 Average 370 | . 75 136 111 268 315 589 522 690 404 389 Maximum Alert Level 3 | . . 1 1 2 2 3 3 3 3 2 Low Security (%) 28 | 100 100 80 88 22 3 . . . 13 . Level 1 27 | . . 19 11 63 77 13 38 . 27 47 Level 2 30 | . . . . 14 19 61 44 32 45 52 Level 3 13 | . . . . . . 24 17 67 12 . Level 4 . | . . . . . . . . . . . Level 5 . | . . . . . . . . . . . High Security . | . . . . . . . . . . . Max Security . | . . . . . . . . . . . Squads Dispatched 13 | . 1 1 1 . 1 . 2 . 4 3 Investigation 3 | . 1 . . . 1 . . . 1 . Extermination 5 | . . . . . . . 2 . 1 2 Reinforcement 4 | . . 1 1 . . . . . 2 . Assault 1 | . . . . . . . . . . 1 Garrison . | . . . . . . . . . . . Intercept . | . . . . . . . . . . . Construction Impeded . | . . . . . . . . . . . Haulers Reinforced . | . . . . . . . . . . . Cargo Convoy Interrupts 1 | . . . . . . . . . 1 . Stealth | -11 -10 -9 -8 -8 -8 -8 -7 -7 -7 -6 --------- Run | Scr Mat Mat Mat Gar Sto Gar Fac Gar Fac Fac Distress Signals 6 | . 1 . 1 . . . 2 . . 2 Communications Jammed . | . . . . . . . . . . . Distress Signals . | . . . . . . . . . . . Times Spotted 175 | . 9 19 31 6 7 15 25 15 33 15 Peak Tracking Total 12 | . 4 4 4 4 3 7 6 4 12 5 Tactical Retreats 11 | . 1 1 . 2 . 4 1 2 . . Traps | -11 -10 -9 -8 -8 -8 -8 -7 -7 -7 -6 ------- Run | Scr Mat Mat Mat Gar Sto Gar Fac Gar Fac Fac Traps Triggered 7 | . 1 . . . . 1 1 2 2 . Indirectly . | . . . . . . . . . . . Trap Hack Attempts . | . . . . . . . . . . . Triggered . | . . . . . . . . . . . Disarmed . | . . . . . . . . . . . Reprogrammed . | . . . . . . . . . . . Reused . | . . . . . . . . . . . Traps Extracted . | . . . . . . . . . . . Installed . | . . . . . . . . . . . Triggered . | . . . . . . . . . . . Machines | -11 -10 -9 -8 -8 -8 -8 -7 -7 -7 -6 ---------- Run | Scr Mat Mat Mat Gar Sto Gar Fac Gar Fac Fac Machines Disabled 23 | . . . . 1 1 3 1 2 . 15 Max in Single Turn 14 | . . . . 1 1 1 1 1 . 14 Garrison Access 2 | . . . . . . . 1 . . 1 Garrison Relay 4 | . . . . 1 . 1 . 2 . . Phase Generator 1 | . . . . . . 1 . . . . Machines Sabotaged . | . . . . . . . . . . . Garrisons Compromised . | . . . . . . . . . . . Overloaded Fab Kills . | . . . . . . . . . . . Fab Network Shutdowns 2 | . . . . . . . 1 . 1 . Hacking | -11 -10 -9 -8 -8 -8 -8 -7 -7 -7 -6 --------- Run | Scr Mat Mat Mat Gar Sto Gar Fac Gar Fac Fac Machines Accessed 31 | . 1 3 8 . 3 . 9 . 6 1 Terminals 15 | . 1 2 6 . 2 . 2 . 2 . Fabricators 5 | . . . . . . . 3 . 2 . Repair Stations . | . . . . . . . . . . . Recycling Units 2 | . . . . . . . 2 . . . Scanalyzers 4 | . . 1 1 . . . . . 2 . Garrison Access 5 | . . . 1 . 1 . 2 . . 1 Total Hacks 72 | . 4 11 19 . 8 . 17 . 12 1 Successful 43 | . . 8 12 . 4 . 12 . 6 1 Failed 29 | . 4 3 7 . 4 . 5 . 6 . Catastrophic 7 | . . . 3 . 1 . 1 . 2 . Database Lockouts . | . . . . . . . . . . . Manual 27 | . 4 5 12 . 4 . . . 2 . Terminals 40 | . 4 8 16 . 7 . 3 . 2 . Fabricators 11 | . . . . . . . 7 . 4 . Repair Stations . | . . . . . . . . . . . Recycling Units 4 | . . . . . . . 4 . . . Scanalyzers 11 | . . 3 2 . . . . . 6 . Garrison Access 6 | . . . 1 . 1 . 3 . . 1 Terminal Hacks 11 | . . 3 5 . 2 . 1 . . . Robot Analysis 3 | . . . 3 . . . . . . . Open Door 1 | . . . . . 1 . . . . . Emergency Access Points 1 | . . 1 . . . . . . . . Unreport Threat 1 | . . . 1 . . . . . . . Locate Traps 2 | . . . . . 1 . 1 . . . Zone Layout 3 | . . 2 1 . . . . . . . Fabricator Hacks 8 | . . . . . . . 6 . 2 . Load Schematic 4 | . . . . . . . 3 . 1 . Build 4 | . . . . . . . 3 . 1 . Repair Station Hacks . | . . . . . . . . . . . Recycling Unit Hacks 2 | . . . . . . . 2 . . . Report Inventory 2 | . . . . . . . 2 . . . Scanalyzer 9 | . . 3 2 . . . . . 4 . Insert Component 4 | . . 1 1 . . . . . 2 . Analyze 5 | . . 2 1 . . . . . 2 . Garrison Access Hacks 6 | . . . 1 . 1 . 3 . . 1 Unlock Access 3 | . . . 1 . 1 . 1 . . . Seal Access 2 | . . . . . . . 1 . . 1 Coupler Status 1 | . . . . . . . 1 . . . Unauthorized Hacks 7 | . . 2 4 . 1 . . . . . Terminals 7 | . . 2 4 . 1 . . . . . Track 2 | . . . 2 . . . . . . . Botnet 5 | . . 2 2 . 1 . . . . . Fabricators . | . . . . . . . . . . . Repair Stations . | . . . . . . . . . . . Recycling Units . | . . . . . . . . . . . Scanalyzers . | . . . . . . . . . . . Garrison Access . | . . . . . . . . . . . Data Cores Recovered . | . . . . . . . . . . . Used . | . . . . . . . . . . . Hacking Detections 24 | . 1 2 7 . 1 . 8 . 5 . Full Trace Events 2 | . 1 . . . 1 . . . . . Feedback Events . | . . . . . . . . . . . Feedback Blocked . | . . . . . . . . . . . Robot Schematics Acquired . | . . . . . . . . . . . Robots Built . | . . . . . . . . . . . Matter . | . . . . . . . . . . . Time . | . . . . . . . . . . . Total Robot Build Rating . | . . . . . . . . . . . Part Schematics Acquired 3 | . . 1 1 . . . . . 1 . Parts Built 6 | . . . . . . . 4 . 2 . Matter 438 | . . . . . . . 292 . 146 . Time 219 | . . . . . . . 146 . 73 . Total Part Build Rating 18 | . . . . . . . 12 . 6 . Parts Repaired . | . . . . . . . . . . . Time . | . . . . . . . . . . . Parts Recycled . | . . . . . . . . . . . Recycled Matter . | . . . . . . . . . . . Retrieved Matter . | . . . . . . . . . . . Retrieved Components . | . . . . . . . . . . . Parts Scanalyzed 4 | . . 1 1 . . . . . 2 . Part Schematics Acquired 3 | . . 1 1 . . . . . 1 . Parts Damaged . | . . . . . . . . . . . Bothacking | -11 -10 -9 -8 -8 -8 -8 -7 -7 -7 -6 ------------ Run | Scr Mat Mat Mat Gar Sto Gar Fac Gar Fac Fac Used RIF Installer 3 | . . . . 1 . 1 . 1 . . Hotswap 1 | . . . . . . . . 1 . . Robot Detection 1 | . . . . . . 1 . . . . Robots Hacked 33 | . . . . . . . 12 8 7 6 Non-combat 13 | . . . . . . . 6 . 4 3 Combat 20 | . . . . . . . 6 8 3 3 Robot Hacks Applied 40 | . . . . . . . 15 8 10 7 generate_anomaly 3 | . . . . . . . 3 . . . map_walls 4 | . . . . . . . 1 . 2 1 drop_inventory 4 | . . . . . . . 2 . 1 1 find_recycling 1 | . . . . . . . 1 . . . purge_threat 1 | . . . . . . . . . . 1 locate_traps 1 | . . . . . . . . . . 1 find_garrison 1 | . . . . . . . 1 . . . overload_power 5 | . . . . . . . . 4 . 1 amplify_resonance 4 | . . . . . . . . 1 3 . wipe_record 3 | . . . . . . . 1 1 1 . reboot_system 6 | . . . . . . . 4 1 . 1 go_dormant 1 | . . . . . . . 1 . . . overwrite_iff 4 | . . . . . . . 1 1 1 1 streamctrl_high 2 | . . . . . . . . . 2 . Relay Couplers Released 20 | . . . . 4 . 5 3 8 . . Machine Destruction 20 | . . . . 4 . 5 3 8 . . Attached 11 | . . . . . . 1 3 2 2 3 Robots Rewired . | . . . . . . . . . . . Allies Hacked . | . . . . . . . . . . . Hacks Repelled . | . . . . . . . . . . . Allies | -11 -10 -9 -8 -8 -8 -8 -7 -7 -7 -6 -------- Run | Scr Mat Mat Mat Gar Sto Gar Fac Gar Fac Fac Total Allies 6 | . . . . . . . 1 1 3 1 Largest Group 1 | . . . . . . . 1 1 1 1 Highest-Rated Group 90 | . . . . . . . 12 21 90 47 Highest-Rated Ally 90 | . . . . . . . 12 21 90 47 Total Orders . | . . . . . . . . . . . Ally Attacks 17 | . . . . . . . 6 3 4 4 Total Damage 285 | . . . . . . . 59 45 24 157 Kills 2 | . . . . . . . 1 . . 1 Allies Corrupted . | . . . . . . . . . . . Allies Melted 1 | . . . . . . . . . . 1 Intel | -11 -10 -9 -8 -8 -8 -8 -7 -7 -7 -6 ------- Run | Scr Mat Mat Mat Gar Sto Gar Fac Gar Fac Fac Robot Analysis Total 3 | . . . 3 . . . . . . . Derelict Logs Recovered . | . . . . . . . . . . . Drone Launches . | . . . . . . . . . . . Drone Recoveries . | . . . . . . . . . . . Exploration | -11 -10 -9 -8 -8 -8 -8 -7 -7 -7 -6 ------------- Run | Scr Mat Mat Mat Gar Sto Gar Fac Gar Fac Fac Turns Passed 9612 | 129 406 833 1373 573 327 755 1915 842 1458 1001 Spaces Moved 5228 | 73 236 377 668 293 144 377 991 467 940 662 Core 12 | 12 . . . . . . . . . . Treads 2183 | 61 236 377 668 293 144 377 27 . . . Legs 3033 | . . . . . . . 964 467 940 662 Wheels . | . . . . . . . . . . . Hover . | . . . . . . . . . . . Flight . | . . . . . . . . . . . Fastest Speed 50 | 50 160 160 160 160 160 160 122 127 127 120 Average Speed 140 | 160 160 160 160 160 160 160 126 127 129 123 Slowest Speed 250 | 250 160 160 160 160 160 160 160 127 206 207 Overloaded Moves . | . . . . . . . . . . . Propulsion Burnouts . | . . . . . . . . . . . Robots Hopped . | . . . . . . . . . . . Cave-ins Triggered . | . . . . . . . . . . . Exploration Rate (%) 32 | 7 34 37 52 35 23 68 22 37 23 21 Regions Visited 10 Branch Regions 1 Pre-discovered Areas . | . . . . . . . . . . . Known Exits Taken 3 | . . . 1 . 1 . 1 . . . Unknown Exits Taken 4 | 1 1 1 . . . . . . 1 . Scrap Searched . | . . . . . . . . . . . Spaces Dug 12 | . . . . . 3 . 7 . . 2 Terrain Destroyed 162 | . . . . . 3 80 12 . 28 39 Melee 11 | . . . . . 2 . 7 . . 2 Projectile 6 | . . . . . 1 . 2 . . 3 AOE 145 | . . . . . . 80 3 . 28 34 Terrain Rammed . | . . . . . . . . . . . Walls Destroyed . | . . . . . . . . . . . Machines Disabled . | . . . . . . . . . . . Actions | -11 -10 -9 -8 -8 -8 -8 -7 -7 -7 -6 --------- Run | Scr Mat Mat Mat Gar Sto Gar Fac Gar Fac Fac Total 6929 | 82 256 514 871 353 212 459 1560 673 1155 794 Wait 913 | . 2 53 76 31 19 8 417 146 122 39 Move 5218 | 72 235 376 668 291 144 375 991 465 939 662 Hop . | . . . . . . . . . . . Pick Up 104 | 4 7 9 15 2 4 8 16 5 21 13 Fast Attach 36 | 6 2 4 5 . 2 2 7 1 4 3 Attach 24 | . . 2 3 . . 2 4 2 7 4 Detach 6 | . 1 2 . . . . . . 1 2 Swap 116 | . 1 9 13 3 12 7 32 13 13 13 Drop 124 | . 3 10 28 2 13 9 24 3 15 17 Fire 289 | . 5 46 60 23 16 47 35 21 15 21 Melee 73 | . . . . . 2 . 31 10 13 17 Ram . | . . . . . . . . . . . Kick 6 | . . . . . . . 3 . . 3 Crush 8 | . . 3 3 1 . 1 . . . . Escape Stasis 12 | . . . . . . . . 7 5 . Rewire . | . . . . . . . . . . . Trap . | . . . . . . . . . . . Miscellaneous . | . . . . . . . . . . . Route ------- -11/Scrapyard -10/Materials -9/Materials -8/Materials (discovered 3 exits: *Fac / *Sto / Gar) -8/Garrison (discovered 2 exits: *Sto x2) -8/Storage -8/Garrison (discovered 2 exits: *Fac x2) -7/Factory (discovered 2 exits: *Fac / Gar) -7/Garrison -7/Factory (discovered 2 exits: *Fac / [*Low]) -6/Factory History --------- Turn | Location | Event 43 | -11/Scrapyard | Discovered new exit (range 15) 130 | -11/Scrapyard | Entered Materials 253 | -10/Materials | Discovered new exit (range 3) 314 | -10/Materials | Build established: Mutant 536 | -10/Materials | Entered another Materials area 536 | -9/Materials | Evolved 2 slots: Propulsion x1, Utility x1 1244 | -9/Materials | Discovered new exit (range 6) 1306 | -9/Materials | Build established: Scavenger-Mutant 1369 | -9/Materials | Entered another Materials area 1369 | -8/Materials | Evolved 2 slots: Propulsion x1, Utility x1 1489 | -8/Materials | Discovered new exit (range 10) 1833 | -8/Materials | Discovered new exit (range 12) 2742 | -8/Materials | Identified exit to Garrison 2742 | -8/Materials | Entered Garrison 2815 | -8/Garrison | Triggered checkpoint 2949 | -8/Garrison | Discovered new exit (range 14) 3035 | -8/Garrison | Triggered checkpoint 3124 | -8/Garrison | Discovered new exit (range 13) 3153 | -8/Garrison | Installed Relay Interface Framework 3206 | -8/Garrison | Triggered checkpoint 3234 | -8/Garrison | Garrison Relay disabled 3315 | -8/Garrison | Entered Storage 3640 | -8/Storage | Identified exit to Garrison 3642 | -8/Storage | Entered Garrison 3706 | -8/Garrison | Phase Generator disabled 3728 | -8/Garrison | Triggered checkpoint 3958 | -8/Garrison | Discovered new exit (range 14) 4128 | -8/Garrison | Discovered new exit (range 6) 4147 | -8/Garrison | Expanded RIF knowledge: Robot Detection 4180 | -8/Garrison | Triggered checkpoint 4242 | -8/Garrison | Garrison Relay disabled 4397 | -8/Garrison | Entered Factory 4397 | -7/Factory | Evolved 2 slots: Utility x2 4550 | -7/Factory | Build established: Bothacker-Mutant 4774 | -7/Factory | Fabricated Titanium Leg (x2) 4888 | -7/Factory | Fabricated Titanium Leg (x2) 5066 | -7/Factory | Build established: Mutant 5366 | -7/Factory | Local fabrication network quarantined 5417 | -7/Factory | Build established: Bothacker-Mutant 5782 | -7/Factory | Discovered new exit (range 16) 6231 | -7/Factory | Found Prototype Launcher 6232 | -7/Factory | Identified Rocket Array 6312 | -7/Factory | Identified exit to Garrison 6312 | -7/Factory | Entered Garrison 6412 | -7/Garrison | Triggered checkpoint 6571 | -7/Garrison | Garrison Relay disabled 6648 | -7/Garrison | Triggered checkpoint 6885 | -7/Garrison | Discovered new exit (range 15) 6912 | -7/Garrison | Expanded RIF knowledge: Hotswap 6945 | -7/Garrison | Triggered checkpoint 6996 | -7/Garrison | Garrison Relay disabled 7154 | -7/Garrison | Entered Factory 7420 | -7/Factory | Discovered new exit (range 16) 8155 | -7/Factory | Local fabrication network quarantined 8224 | -7/Factory | Fabricated Titanium Leg (x2) 8424 | -7/Factory | Cargo convoy interrupted 8441 | -7/Factory | Discovered new exit (range 11) 8499 | -7/Factory | Lost 5 parts (1p1n2u1w) 8612 | -7/Factory | Entered another Factory area 8612 | -6/Factory | Evolved 2 slots: Utility x1, Weapon x1 8962 | -6/Factory | First assault squad dispatched 9613 | -6/Factory | Self-destructed Last Messages --------------- 09573_ Sneak attack on K-01 Serf. 09573_ Destroyed Wheel. 09573_ Destroyed Lgt. Ion Engine. 09576_ Sneak attack on Y-54 Guardian. 09576_ Destroyed Imp. Deuterium Engine. 09578_ Sneak attack on Y-54 Guardian. 09578_ Destroyed Lgt. Treads. 09579_ System corrupted: Matter fused (-5). 09581_ Sneak attack on Y-54 Guardian. 09586_ Destroyed Gatling Laser. 09586_ Destroyed Imp. Light Armor Plating. 09587_ ALERT: Rogue bot located, Programmers report to Factory Zone 6N. 09588_ Sneak attack on Y-54 Guardian. 09588_ Y-54 Guardian destroyed. 09592_ Acquired 75 matter. 09601_ Dropped Mic. Nuclear Core. 09603_ Dropped Kinecellerator. 09603_ Acquired Mic. Nuclear Core. 09606_ R-10 Processor collects Imp. Heat Sink. 09610_ R-10 Processor collects Flak Gun. Map ----- +----------------------------------------------------+ | ???????????# ##### #??# #??????? | | ???????????# !#??# #??????? | | ???????????# #??# #??????? | | ???????????#! " ""#??# #??????? | | ???????????# " ""#??# #??????? | | ???????????# " ""#??# #??????? | | ???????????# " G#?## #??????? | | ?????????# " ""#?## #??????? | | ##?????????# " ""#?## #??????? | | ##?????????# " ""#??# #??????? | | ##?????????# " #??# #####??????? | | #######????# " #??# #??????????? | | ############ #??# #??????????? | | #??# #??????????? | | ############+##### #??# #??????????? | | ##### ???? ???# #### #??????????? | | #???#?????? ""???# #??????????? | | #???#?????" """??# #??????????? | | #???#?????" """??# #??????????? | | #???#???? ?#? #??###?????? | | #???##############+## #### ######? | | #??????????#????????# # !* #? | | #??????????#????????# # """ ! #? | | #??????????#????????# # """ !! #? | | #??????????#????????# # """ #? | | #??????????#??? + %R@ #? | | ???????????# """ # R# "" "" ! #? | | ???????????#?""" ??# # ""S"" #? | | ???????????#?"""????# # """" #? | | ????????????? ??????# ###########? | | ??????????????####### #??????????? | | ???????????????????## #??????????? | | ####???????########## #??????????? | | #???????# # #??????????? | | #???????# # #??????????? | | #???????# # #??????????? | | ]#???????# # #??????????? | | #???????# / # #??????????? | | [ #???????# /[/ # #??????????? | | #???????# # #??????????? | | #???????# [ # +??????????? | | #???????# # #??????????? | | ##+#############/#### #??????????? | | #?????????? | | #?????????? | | +????????? | | ##????????? | | #?????????? | | ### ############# #?????????? | | ??# #???????????? #?????????? | +----------------------------------------------------+ Best States ------------- Heat Dissipation 59 Energy Generation 19 Energy Capacity 500 Matter Stores 500 Matter Capacity 500 Sight Range 16 Terrain Scan Density 10 Jamming Range 8 Armor Coverage 600 Resistance: TH 15 Evasion (%) 55 Recoil Reduction 4 Relay Coupler Types 120 Relay Coupler Value 5 Item Schematics ----------------- Lrg. Storage Unit | -9/Materials | Scanalyzed Titanium Leg | -8/Materials | Scanalyzed Remote Datajack | -7/Factory | Scanalyzed Robot Schematics ------------------ None Fabricated ------------ Titanium Leg | x2 | -7/Factory Titanium Leg | x2 | -7/Factory Titanium Leg | x2 | -7/Factory Alien Tech Used ----------------- None Achievements -------------- None Challenges ------------ None Game ------ Seed AerolevHardlightTerrabomb Manual? 0 Play Time 02:11:24 Cumulative 235.3 hours Start 2021.05.26 @ 20:05:02 End 2021.05.28 @ 18:51:43 Sessions 5 Manual Loads 0 Difficulty Rogue Special Mode None Game No. 173 Rogue 173 Adventurer 0 Explorer 0 Win Type - Total 1 Types 1/0/0/0/0/0/0/0/0 Lore% 58 Gallery% 65 Achievement% 44 Wizard Run 0 Options --------- ASCII 0 Keyboard 0 Movement Arrows Keybinds 0 Fullscreen 1 Font 18/SmallcapsGlow Map View 76x50 Tactical HUD 1 Map Filters NONE Filters NONE Steam 1 RUN: 8ff0b4fb-0800-4a91-9803-19a6640e4754